[Event "44th Chess Olympiad Women 2022"]
[Site "Chennai"]
[Date "2022.07.30"]
[Round "2.20"]
[White "Silva, Mariana Sofia T."]
[Black "Cosma, Elena-Luminita"]
[Result "0-1"]
[ECO "E04"]
[WhiteElo "1912"]
[BlackElo "2248"]
[Annotator "TA"]
[PlyCount "112"]
[EventDate "2022.07.29"]
[EventType "team-tourn"]
[EventCountry "IND"]
[SourceTitle "playchess.com"]
[Source "ChessBase"]
[SourceQuality "1"]
[WhiteTeam "Portugal"]
[BlackTeam "Romania"]
[WhiteTeamCountry "POR"]
[BlackTeamCountry "ROU"]
[TimeControl "40/5400+30:1800+30"]

{[%evp 13,112,36,47,14,21,37,32,20,31,14,12,6,15,0,14,7,25,22,22,21,25,0,0,0,0,-35,-35,-22,-27,-49,-36,-94,-78,-107,-120,-143,-120,-131,-117,-193,-100,-114,-103,-119,-127,-202,-200,-206,-204,-205,-191,-204,-204,-204,-204,-203,-197,-195,-189,-184,-160,-162,-154,-156,-140,-197,-140,-179,-117,-256,-256,-338,-338,-668,-535,-526,-524,-509,-504,-641,-480,-841,-827,-752,-697,-692,-691,-601,-587,-669,-655,-572,-557,-848,-472,-829,-789,-969,-470,-1373,-1337]} 1. d4 {[%emt 0:00:02]} d5 {[%emt 0:00:10]} 2. c4 {[%emt 0:00:08]} e6 {[%emt 0:00:06]} 3. Nf3 {[%emt 0:00:06]} Nf6 {[%emt 0:00:08]} 4. g3 {[%emt 0:00:07]} dxc4 {[%emt 0:00:14]} 5. Bg2 {[%emt 0:00:08]} Bb4+ {[%emt 0:00:21]} 6. Bd2 {[%emt 0:00:34]} Bd6 {[%emt 0:00:19]} 7. Qa4+ {[%emt 0:00:43]} Nc6 {[%emt 0:00:59]} 8. Qxc4 {[%emt 0:05:22] E04: Open Catalan: 5 Nf3.} e5 {[%emt 0:00:57]} 9. dxe5 {[%emt 0:03:12]} (9. Nxe5 {feels hotter.} Nxe5 10. dxe5 Bxe5 11. Bc3) 9... Nxe5 {[%emt 0:00:08]} 10. Nxe5 {[%emt 0:02:17] White is slightly better.} Bxe5 {[%emt 0:00:05]} 11. Qb5+ {[%emt 0:01:47]} Nd7 {[%emt 0:00:10]} 12. Bc3 {[%emt 0:04:34]} ({But not} 12. Bxb7 $2 Rb8 13. Nc3 Bxb7 $19) 12... O-O {[%emt 0:21:21]} 13. O-O {[%emt 0:04:27]} ({Don't go for} 13. Bxb7 $2 Bxc3+ 14. Nxc3 Rb8 $19) 13... c6 {[%emt 0:01:34]} 14. Qd3 {[%emt 0:03:40] [#]} (14. Qb3 {looks sharper.} Bc7 15. Rd1 Re8 16. Nd2) 14... Bxc3 $146 {[%emt 0:06:07]} ({Predecessor:} 14... Qf6 15. Rd1 Nc5 16. Qe3 Bxc3 17. Nxc3 Na6 18. Rd2 Bf5 19. Qf4 Qe6 20. Rd6 Qc8 {1-0 (45) Zubritskiy,A (2442)-Rogule,L (2295) Tallinn 2016}) 15. Nxc3 {[%emt 0:00:18]} Nf6 {[%emt 0:00:09]} 16. Rfd1 {[%emt 0:05:27]} Be6 {[%emt 0:03:17]} 17. b4 {[%emt 0:18:31]} Qxd3 {[%emt 0:17:23]} 18. Rxd3 {[%emt 0:00:11]} a5 {[%emt 0:08:50]} 19. b5 {[%emt 0:17:06]} cxb5 {[%emt 0:07:39]} 20. Bxb7 {[%emt 0:00:40]} Rab8 {[%emt 0:00:37]} 21. Bf3 {[%emt 0:00:29]} Rfc8 {[%emt 0:07:50]} 22. e4 {[%emt 0:07:43]} (22. Nd5 $15) 22... Nd7 $17 {[%emt 0:04:24]} 23. Nd5 {[%emt 0:02:57]} Ne5 {[%emt 0:04:51]} 24. Ne7+ {[%emt 0:03:41]} Kf8 $1 {[%emt 0:00:07]} 25. Nxc8 {[%emt 0:00:08][%cal Rd3d8]} Nxd3 {[%emt 0:00:05]} 26. Na7 {[%emt 0:04:26]} (26. Nd6 $17) 26... Ne5 {[%emt 0:07:00]} ({Black should try} 26... b4 $19 {[%cal Oe6a2] ...Bxa2! is the strong threat.} 27. Nc6 Rc8) 27. Be2 {[%emt 0:01:56]} Bc4 {[%emt 0:00:17]} 28. Bxc4 {[%emt 0:01:12]} bxc4 {[%emt 0:00:29][%mdl 4096] Endgame KRN-KRN} 29. f4 {[%emt 0:02:23] [#]} (29. Rc1 $17 {might work better.}) 29... Nd3 $1 $19 {[%emt 0:01:27] Hoping for ...c3.} 30. Nc6 {[%emt 0:03:24]} Rb2 {[%emt 0:01:24]} 31. Nxa5 {[%emt 0:01:58]} c3 {[%emt 0:00:31]} 32. Nc4 {[%emt 0:02:56] [#]} Re2 {[%emt 0:00:17] Strongly threatening ...c2.} 33. Na3 {[%emt 0:03:17]} c2 {[%emt 0:00:47]} 34. Nxc2 {[%emt 0:00:25]} Rxc2 {[%emt 0:00:05] KRN-KR} 35. a4 {[%emt 0:00:11]} Nc5 {[%emt 0:02:52]} 36. e5 {[%emt 0:00:14]} Na6 {[%emt 0:01:04]} 37. Ra3 {[%emt 0:01:22]} g6 {[%emt 0:00:20]} 38. h3 {[%emt 0:00:28]} h5 {[%emt 0:00:17][%cal Bh7h5,Bh5h4][%mdl 32]} 39. Kf1 {[%emt 0:00:40]} (39. a5 $17 {was worth a try.}) 39... Ke8 {[%emt 0:02:41]} ({Black should play} 39... h4 $19 {aiming for ...hxg3.} 40. gxh4 Rc4) 40. Ke1 {[%emt 0:00:37]} Rc4 {[%emt 0:00:50]} (40... h4 $19 {And now ...hxg3 would win.} 41. g4 Rc4) 41. Kd2 {[%emt 0:30:26] White does not recover from this.} (41. Kf2 $17 {is a better defense.}) 41... h4 {[%emt 0:30:19]} 42. Kd3 {[%emt 0:00:00]} Rb4 {[%emt 0:00:00]} 43. g4 $2 {[%emt 0:00:00]} (43. f5 gxf5 44. gxh4) 43... Rxf4 {[%emt 0:00:00] Black is clearly winning.} 44. Ke3 {[%emt 0:00:00] Prevents Rf3+.} Rb4 {[%emt 0:00:00]} 45. a5 {[%emt 0:00:00]} Ke7 {[%emt 0:00:00]} 46. Rd3 {[%emt 0:00:00]} Rb5 {[%emt 0:00:00]} 47. Kf4 {[%emt 0:00:00]} (47. Ra3 $142 Rxe5+ 48. Kf2) 47... Rxa5 {[%emt 0:00:00] Threatens to win with ...Nc5.} 48. Re3 {[%emt 0:00:00]} Nc7 {[%emt 0:00:00] ( -> ...Nd5+)} 49. Kg5 {[%emt 0:00:00]} Ke6 {[%emt 0:00:00]} 50. Kxh4 {[%emt 0:00:00]} Rxe5 {[%emt 0:00:00]} 51. Rc3 {[%emt 0:00:00]} Ne8 {[%emt 0:00:00]} 52. Ra3 {[%emt 0:00:00]} Nd6 {[%emt 0:00:00]} 53. Rb3 {[%emt 0:00:00]} Kf6 {[%emt 0:00:00]} 54. Rb6 {[%emt 0:00:00]} (54. Rf3+ $142 Ke6 55. Kg3) 54... Rd5 {[%emt 0:00:00] White must now prevent ...Rd3.} 55. Ra6 {[%emt 0:00:00]} Kg7 {[%emt 0:00:00]} (55... g5+ $142 56. Kg3 Rd3+ 57. Kg2 Ke5) 56. Rc6 {[%emt 0:00:00]} (56. Kg3 $142) 56... Ne4 {[%emt 0:00:00] Weighted Error Value: White=0.43/Black=0.16 (very precise)} 0-1

[Event "44th Chess Olympiad Women 2022"]
[Site "Chennai"]
[Date "2022.07.30"]
[Round "2.21"]
[White "Houska, Jovanka"]
[Black "Cordero, Daniela"]
[Result "1-0"]
[ECO "A74"]
[WhiteElo "2360"]
[BlackElo "2005"]
[Annotator "TA"]
[PlyCount "61"]
[EventDate "2022.07.29"]
[EventType "team-tourn"]
[EventCountry "IND"]
[SourceTitle "playchess.com"]
[Source "ChessBase"]
[SourceQuality "1"]
[WhiteTeam "England"]
[BlackTeam "Bolivia"]
[WhiteTeamCountry "ENG"]
[BlackTeamCountry "BOL"]
[TimeControl "40/5400+30:1800+30"]

{[%evp 20,61,47,44,50,62,54,50,66,28,191,184,195,165,443,435,438,453,426,446,425,413,413,384,389,384,451,360,862,862,853,831,896,902,867,877,1127,1088,29963,6229,2270,3546,3539,2262]} 1. d4 {[%emt 0:00:02]} Nf6 {[%emt 0:00:26]} 2. Nf3 {[%emt 0:00:41][%cal Bg1f3,Bf3d2,Bd2c4][%mdl 32]} e6 {[%emt 0:00:52]} 3. c4 {[%emt 0:00:04]} c5 {[%emt 0:00:05]} 4. d5 {[%emt 0:00:05]} exd5 {[%emt 0:00:08]} 5. cxd5 {[%emt 0:00:04]} d6 {[%emt 0:00:06]} 6. Nc3 {[%emt 0:00:23]} g6 {[%emt 0:01:08]} 7. Nd2 {[%emt 0:00:31]} Nbd7 {[%emt 0:10:18]} 8. e4 {[%emt 0:06:09]} Bg7 {[%emt 0:01:32]} 9. Be2 {[%emt 0:00:16]} O-O {[%emt 0:02:16]} 10. O-O {[%emt 0:00:31]} a6 {[%emt 0:02:17]} 11. a4 $1 {[%emt 0:01:01]} b6 {[%emt 0:00:25] A74: Modern Benoni: Classical: 9...a6.} 12. Nc4 {[%emt 0:09:49]} Ne8 {[%emt 0:05:51]} 13. f4 {[%emt 0:04:30]} Rb8 {[%emt 0:04:01] White is slightly better.} 14. Be3 {[%emt 0:06:52] [#] White is more active.} b5 $146 {[%emt 0:04:45]} (14... f5 $11 {and Black stays safe.}) ({Predecessor:} 14... Qe7 15. Bf3 Kh8 16. Qd2 g5 17. g3 gxf4 18. gxf4 Rg8 {½-½ (52) Purdon,C (2061)-Buttell,D (1945) England 2019}) 15. axb5 $18 {[%emt 0:00:06]} axb5 {[%emt 0:00:05] [#]} 16. Na5 {[%emt 0:00:29] Black must now prevent Nc6.} Rb6 $2 {[%emt 0:18:35]} (16... b4 {is a better defense.}) 17. Nc6 {[%emt 0:03:03]} Rxc6 {[%emt 0:07:58]} 18. dxc6 {[%emt 0:00:05]} Nb8 {[%emt 0:00:24]} 19. Bxb5 {[%emt 0:06:11]} Nc7 {[%emt 0:04:32]} 20. Ba4 {[%emt 0:02:39]} Qe7 {[%emt 0:21:10]} 21. Re1 {[%emt 0:01:14]} Nba6 {[%emt 0:01:01]} 22. Qd2 {[%emt 0:01:30]} Rd8 {[%emt 0:06:10]} 23. Bf2 {[%emt 0:02:11]} Ne6 $2 {[%emt 0:03:17] [#]} (23... Nb4 24. Nd5 Nbxd5) 24. Nd5 {[%emt 0:00:53]} Qf8 {[%emt 0:00:14]} 25. f5 {[%emt 0:01:02][%cal Bf4f5,Bf5f6][%mdl 32]} Nec7 {[%emt 0:04:37]} 26. f6 {[%emt 0:03:51]} Bh6 {[%emt 0:00:02]} 27. Qa5 {[%emt 0:00:45]} Nxd5 {[%emt 0:01:12]} 28. exd5 {[%emt 0:00:15]} Nb4 {[%emt 0:00:32]} 29. c7 {[%emt 0:00:18]} Rd7 {[%emt 0:00:30]} 30. Bxd7 {[%emt 0:00:22]} Bxd7 {[%emt 0:00:05]} 31. Re7 {[%emt 0:00:41] White took control after the opening.  Weighted Error Value: White=0.11 (very precise) /Black=1.00} 1-0

[Event "44th Chess Olympiad Women 2022"]
[Site "Chennai"]
[Date "2022.07.30"]
[Round "2.21"]
[White "Kalaiyalahan, Akshaya"]
[Black "Molina, Jessica"]
[Result "1-0"]
[ECO "D46"]
[WhiteElo "2158"]
[BlackElo "1889"]
[Annotator "TA"]
[PlyCount "127"]
[EventDate "2022.07.29"]
[EventType "team-tourn"]
[EventCountry "IND"]
[SourceTitle "playchess.com"]
[Source "ChessBase"]
[SourceQuality "1"]
[WhiteTeam "England"]
[BlackTeam "Bolivia"]
[WhiteTeamCountry "ENG"]
[BlackTeamCountry "BOL"]
[TimeControl "40/5400+30:1800+30"]

{[%evp 19,127,14,29,12,39,0,13,11,16,0,21,21,25,25,26,0,10,0,0,0,32,23,81,37,118,125,139,131,264,231,234,206,421,426,386,395,376,383,329,221,221,195,286,279,269,281,264,0,0,0,252,191,191,191,184,120,131,124,125,124,110,0,0,0,0,0,0,0,0,0,0,0,0,0,0,0,0,0,0,0,0,0,0,0,0,0,0,0,0,0,0,0,0,0,0,0,0,0,0,0,0,0,12845,12844,12845,12845,12845,12846,12848,12849]} 1. Nf3 {[%emt 0:00:04]} d5 {[%emt 0:00:05]} 2. e3 {[%emt 0:00:09]} Nf6 {[%emt 0:00:06]} 3. c4 {[%emt 0:00:08]} c6 {[%emt 0:00:11]} 4. b3 {[%emt 0:00:15]} e6 {[%emt 0:00:30]} 5. Bb2 {[%emt 0:00:14]} Be7 {[%emt 0:00:30]} 6. Nc3 {[%emt 0:00:35]} Nbd7 {[%emt 0:00:20]} 7. Qc2 {[%emt 0:00:36]} b6 {[%emt 0:02:49]} 8. d4 {[%emt 0:01:51]} Bb7 {[%emt 0:01:34]} 9. Bd3 $1 {[%emt 0:00:39] 9.Bd3 scores better than 9.Be2.} Rc8 {[%emt 0:02:09] has lost popularity (9...0-0).} 10. O-O {[%emt 0:03:35]} O-O {[%emt 0:01:34]} 11. Ne5 {[%emt 0:05:29] D46: Semi-Slav: 5 e3 Nbd7 6 Bd3, Black avoids the Meran.} h6 {[%emt 0:07:27] [#]} 12. cxd5 $146 {[%emt 0:15:06]} (12. f4 {seems wilder.} c5 13. Rad1 cxd4 14. exd4 Re8 15. Qe2) ({Predecessor:} 12. f4 c5 13. Rad1 Qc7 14. Qe2 Rfd8 15. f5 cxd4 16. exd4 Nf8 17. fxe6 Nxe6 18. Nb5 Qb8 19. Bf5 Ng5 20. Bxc8 {1-0 (20) Nasyrova,E (2271)-Fomkin,D (1923) Cheliabinsk 2020}) 12... Nxd5 {[%emt 0:05:25]} 13. Nxd5 {[%emt 0:05:16] The position is equal.} cxd5 {[%emt 0:06:04]} 14. Qe2 {[%emt 0:00:14]} ({Much weaker is} 14. Bh7+ Kh8 15. Qb1 Nxe5 16. dxe5 f5 17. exf6 Bxf6 $15) 14... Nxe5 {[%emt 0:03:16]} 15. dxe5 {[%emt 0:00:06]} Bc5 {[%emt 0:01:35]} 16. Rad1 {[%emt 0:02:25]} Qe7 {[%emt 0:12:51]} 17. Bb1 {[%emt 0:02:55]} a5 {[%emt 0:04:08]} 18. f4 {[%emt 0:08:16]} Ra8 {[%emt 0:05:43]} 19. Bd3 {[%emt 0:09:13]} Rfd8 {[%emt 0:07:10]} 20. a4 {[%emt 0:01:32]} g6 {[%emt 0:12:56]} (20... Rac8 $11 {keeps the balance.}) 21. Kh1 {[%emt 0:06:02]} Qh4 {[%emt 0:08:01]} ({Better is} 21... h5 $14) 22. Rf3 $1 $16 {[%emt 0:05:13][%cal Bf1f3,Bf3g3,Bg3g6][%mdl 32]} d4 {[%emt 0:03:00]} 23. e4 {[%emt 0:00:04]} f5 {[%emt 0:01:27]} (23... Bf8 $16) 24. exf6 $1 $18 {[%emt 0:00:44]} Qxf6 {[%emt 0:00:26]} 25. Rg3 {[%emt 0:01:16] Hoping for e5.} e5 $2 {[%emt 0:04:05]} (25... Kh8 {might work better.} 26. Qg4 h5 27. Qxg6 Qxg6 28. Rxg6 Rf8) 26. fxe5 {[%emt 0:08:33]} Qxe5 {[%emt 0:00:36]} 27. Rxg6+ {[%emt 0:01:50]} Kh7 {[%emt 0:00:14]} 28. Rg4 {[%emt 0:03:12]} (28. Rg3 Rg8 $18) 28... Rg8 {[%emt 0:02:47]} 29. Rf1 {[%emt 0:04:46]} Raf8 {[%emt 0:01:44] Inhibits Rf7+. White must now prevent ...Rxf1+.} 30. Rxg8 {[%emt 0:00:30]} Kxg8 {[%emt 0:02:06]} (30... Rxf1+ $142 31. Qxf1 Kxg8) 31. Qg4+ {[%emt 0:02:39]} Kh8 {[%emt 0:00:46]} 32. Rxf8+ {[%emt 0:00:33]} Bxf8 {[%emt 0:00:03]} 33. Bc4 $2 {[%emt 0:00:48]} (33. Bc1 $18 {Strongly threatening Bc4.} Qe8 34. Qh4) 33... Bg7 $11 {[%emt 0:02:01]} 34. Bd3 $2 {[%emt 0:00:47][%mdl 8192]} (34. Qd7 $11 Qxe4 35. Qd8+ Kh7 36. Qg8+ Kg6 37. Qf7+ Kh7 38. Qg8+ Kg6 39. Qf7+ Kh7 40. Qg8+) 34... Bf8 $1 $18 {[%emt 0:01:59]} 35. Qf5 {[%emt 0:05:35]} Bd6 {[%emt 0:01:33][%csl Gd6][%cal Re5h2] [#]} 36. Qxe5+ {[%emt 0:00:53]} Bxe5 {[%emt 0:00:02][%mdl 4096] Endgame KBB-KBB} 37. g3 {[%emt 0:00:32]} (37. Kg1 $18) 37... Kg7 {[%emt 0:00:48]} 38. Kg2 {[%emt 0:00:09]} Bc8 {[%emt 0:00:30]} 39. Kf3 {[%emt 0:00:18] Prevents Bg4+.} h5 {[%emt 0:00:22] [#] Against g4} 40. Ke2 {[%emt 0:02:54]} ({White should play} 40. Kf2 $1 $16) 40... Be6 $1 $11 {[%emt 0:00:33]} 41. Kd2 {[%emt 0:30:31]} ({Not} 41. Bc4 $2 Bxc4+ 42. bxc4 d3+ 43. Kf3 Bxb2 $19) 41... Bxb3 {[%emt 0:30:17]} 42. Bb5 {[%emt 0:01:30]} Ba2 $1 {[%emt 0:00:17]} 43. Be8 {[%emt 0:03:15]} Kh6 {[%emt 0:00:46]} 44. Kd3 {[%emt 0:00:00]} Bb1+ {[%emt 0:00:00]} 45. Kc4 {[%emt 0:00:00]} Bxe4 {[%emt 0:00:00]} 46. Bxd4 {[%emt 0:00:00]} Bxd4 {[%emt 0:00:00]} 47. Kxd4 {[%emt 0:00:00] KB-KB} Bc2 {[%emt 0:00:00]} 48. h4 {[%emt 0:00:00]} Kg7 {[%emt 0:00:00]} 49. Kc4 {[%emt 0:00:00] Threatens to win with Kb5.} Kf6 {[%emt 0:00:00]} 50. Kb5 {[%emt 0:00:00]} Bd1 {[%emt 0:00:00]} 51. Kxb6 {[%emt 0:00:00]} Kf5 $1 {[%emt 0:00:00]} 52. Bd7+ {[%emt 0:00:00]} Ke4 $1 {[%emt 0:00:00]} 53. Bc6+ {[%emt 0:00:00]} Kf5 $1 {[%emt 0:00:00]} 54. Bd7+ {[%emt 0:00:32]} Ke4 $1 {[%emt 0:00:00]} 55. Kxa5 {[%emt 0:00:04]} Kf3 {[%emt 0:00:00]} 56. g4 {[%emt 0:00:17]} hxg4 {[%emt 0:00:00]} 57. h5 {[%emt 0:01:26]} g3 {[%emt 0:00:00]} 58. h6 {[%emt 0:01:03]} Bc2 {[%emt 0:00:00]} 59. Bc6+ {[%emt 0:01:20]} Kf4 {[%emt 0:00:00]} 60. Kb4 {[%emt 0:01:35]} Ke5 $2 {[%emt 0:00:00][%mdl 8192]} (60... Be4 $11) 61. a5 $18 {[%emt 0:00:47] White is clearly winning.} Kd6 {[%emt 0:00:00]} 62. Bf3 {[%emt 0:00:42]} Kc7 {[%emt 0:00:00]} 63. Kc5 {[%emt 0:00:31]} Bd1 {[%emt 0:03:52]} 64. h7 {[%emt 0:00:20] Weighted Error Value: White=0.15 (very precise) /Black=0.17 (very precise)} 1-0

[Event "44th Chess Olympiad Women 2022"]
[Site "Chennai"]
[Date "2022.07.30"]
[Round "2.21"]
[White "Ramirez, Maria Eugenia"]
[Black "Toma, Katarzyna"]
[Result "1-0"]
[ECO "B31"]
[WhiteElo "2005"]
[BlackElo "2303"]
[Annotator "TA"]
[PlyCount "113"]
[EventDate "2022.07.29"]
[EventType "team-tourn"]
[EventCountry "IND"]
[SourceTitle "playchess.com"]
[Source "ChessBase"]
[SourceQuality "1"]
[WhiteTeam "Bolivia"]
[BlackTeam "England"]
[WhiteTeamCountry "BOL"]
[BlackTeamCountry "ENG"]
[TimeControl "40/5400+30:1800+30"]

{[%evp 9,113,4,7,2,29,32,41,23,27,27,25,0,0,0,0,-14,0,0,0,-11,0,-14,0,0,20,-26,-34,-38,-5,-13,-13,-7,-9,0,54,54,51,71,77,20,33,33,33,28,46,29,70,60,42,2,23,13,28,-18,0,-11,-12,-11,-10,-13,0,0,0,-34,0,-8,0,-36,-40,-97,-31,-30,-36,-114,-60,-176,-170,-168,-40,-43,0,0,0,0,0,0,754,699,692,697,881,875,863,854,761,685,29994,29995,29995,29996,29996,29997,29997,29998,29998,29999]} 1. e4 {[%emt 0:00:03]} c5 {[%emt 0:00:06]} 2. Na3 {[%emt 0:00:05]} Nc6 {[%emt 0:01:53]} 3. Bb5 {[%emt 0:00:58]} e6 {[%emt 0:05:14]} 4. Nf3 {[%emt 0:01:34]} d5 {[%emt 0:03:56]} 5. exd5 {[%emt 0:06:27] [#]} Qxd5 $146 {[%emt 0:04:16]} ({Predecessor:} 5... exd5 6. Ne5 Nge7 7. O-O a6 8. Bxc6+ Nxc6 9. Nxc6 bxc6 10. Re1+ Be7 11. b3 O-O {0-1 (58) Zalesky,K (2073)-Malinovsky,P (1968) Ostrava 2016}) 6. O-O {[%emt 0:06:20] B31: Sicilian: 2...Nc6 3 Bb5 g6.} Bd7 {[%emt 0:01:15]} 7. Bc4 {[%emt 0:06:35]} Qh5 {[%emt 0:00:44]} 8. c3 {[%emt 0:09:52] White is slightly better.} (8. Be2 {with more complications.} Bd6 9. Nc4 Bc7 10. Nfe5) 8... Nf6 {[%emt 0:03:15]} 9. Be2 {[%emt 0:06:04]} Be7 {[%emt 0:20:50]} 10. d4 {[%emt 0:02:37]} cxd4 {[%emt 0:09:59]} 11. cxd4 {[%emt 0:08:10]} Bxa3 {[%emt 0:06:39]} 12. bxa3 {[%emt 0:07:02][%cal Of3e5]} Qa5 {[%emt 0:00:09] Prevents Ne5.} 13. Rb1 {[%emt 0:02:39]} Qc7 {[%emt 0:04:03]} 14. Bg5 {[%emt 0:05:23][%cal Bc1g5,Bg5h4,Bh4g3,Bg3d6][%mdl 32]} Nd5 {[%emt 0:03:28]} 15. Qc2 {[%emt 0:06:50] Against Nc3} Rc8 {[%emt 0:02:48]} 16. Rfc1 $36 {[%emt 0:06:24][%mdl 2048] Black is under pressure.} O-O {[%emt 0:00:21]} 17. Qb2 {[%emt 0:07:00]} (17. Qe4 $1 {should be considered.}) 17... f6 $11 {[%emt 0:07:49]} 18. Bh4 {[%emt 0:05:10]} b6 {[%emt 0:10:08]} 19. Ba6 {[%emt 0:00:28] Prevents Qb7.} Rce8 $1 {[%emt 0:00:06]} 20. Bg3 {[%emt 0:01:19]} Qd8 {[%emt 0:00:05]} 21. Nd2 {[%emt 0:02:45]} f5 {[%emt 0:01:59]} (21... Nce7 $11) 22. Bd6 $14 {[%emt 0:01:02]} Rf6 {[%emt 0:01:15]} 23. Nf3 {[%emt 0:02:53]} Qa8 {[%emt 0:04:29]} 24. Ne5 {[%emt 0:03:23]} (24. a4 $16) 24... Nxe5 {[%emt 0:00:36]} 25. Bxe5 {[%emt 0:00:37] This bishop pair is nice.} Rg6 {[%emt 0:00:39][%cal Og6g2] And now ...Rxg2+! would win.} 26. Bf1 {[%emt 0:01:10]} h5 {[%emt 0:02:38]} 27. Qe2 {[%emt 0:00:23]} Rh6 {[%emt 0:01:02]} 28. Rb3 {[%emt 0:00:13]} h4 $1 {[%emt 0:00:54] Prevents Rg3.} 29. g3 {[%emt 0:00:41]} (29. Qd2 $5 {[%cal Rd2g5]}) 29... Rc8 {[%emt 0:01:21]} 30. Rxc8+ {[%emt 0:00:41]} Qxc8 {[%emt 0:00:03]} 31. Bg2 {[%emt 0:00:12]} (31. gxh4 $142 Rxh4 32. Rg3) 31... h3 {[%emt 0:01:27]} 32. Bxd5 {[%emt 0:00:12]} exd5 {[%emt 0:00:04]} 33. Qd2 {[%emt 0:00:48]} Rc6 {[%emt 0:01:27]} 34. Rb1 {[%emt 0:00:06] Prevents Rc1+.} Rc2 {[%emt 0:00:28]} 35. Qg5 {[%emt 0:00:22][%csl Ge5][%cal Rg5g7]} Qf8 {[%emt 0:00:10]} 36. Ra1 {[%emt 0:01:24]} Bb5 {[%emt 0:01:27]} 37. Qh4 {[%emt 0:00:26]} Qxa3 {[%emt 0:00:36]} 38. Qg5 {[%emt 0:00:18][%csl Ge5][%cal Rg5g7] Inhibits Rc1+.} Qf8 {[%emt 0:00:34]} 39. Qh4 {[%emt 0:00:46]} (39. Re1 $15) 39... Qc8 {[%emt 0:00:54]} ({Better is} 39... Bd3 $17) 40. Qg5 $1 $15 {[%emt 0:00:13][%csl Ge5][%cal Rg5g7]} Qd7 {[%emt 0:00:18]} 41. Qh4 {[%emt 0:30:13]} ({White should play} 41. Re1 $15) 41... Be2 {[%emt 0:09:38]} (41... Bd3 $17 42. Qg5 Be4) 42. Qxh3 {[%emt 0:00:00]} (42. Qg5 $15) 42... Qc8 $19 {[%emt 0:00:42] ( -> ...Rc1+)} 43. Bf4 {[%emt 0:00:00] [#] Inhibits Rc1+.} Bf3 {[%emt 0:07:39]} (43... Qc3 $1 $19 {[%cal Rc3a1]} 44. Rb1 Bd3) 44. Qh4 $15 {[%emt 0:00:00]} Be4 {[%emt 0:05:53]} 45. Qh5 {[%emt 0:00:00]} Qc6 {[%emt 0:02:34]} 46. Re1 {[%emt 0:00:00]} Rxa2 {[%emt 0:04:45]} 47. f3 {[%emt 0:00:00]} g6 $2 {[%emt 0:01:25][%mdl 8192]} (47... Qc2 $11 48. Qe8+ Kh7 49. Qh5+ Kg8 50. Qe8+ Kh7 51. Qh5+ Kg8) 48. Qg5 {[%emt 0:00:00] Strongly threatening Qe7.} Kf7 {[%emt 0:01:02] Inhibits Qe7+. White must now prevent ...Qc3.} 49. Qh6 {[%emt 0:02:11]} (49. fxe4 $2 Qc2 50. Bd2 Qxd2 51. Qxd2 Rxd2 52. exf5 gxf5 $19) 49... Qc2 {[%emt 0:01:16][%csl Ga2][%cal Rc2g2]} 50. Qh7+ {[%emt 0:00:32][%mdl 64] [#] Deflection} Ke6 {[%emt 0:00:35]} 51. Qxg6+ {[%emt 0:00:17]} Ke7 {[%emt 0:00:17]} 52. Bg5+ {[%emt 0:01:27]} Kf8 {[%emt 0:00:33][%csl Ga2][%cal Rc2g2]} 53. Qf6+ {[%emt 0:00:11] White mates.} Kg8 {[%emt 0:00:25]} 54. Qe6+ {[%emt 0:00:30]} Kg7 {[%emt 0:00:10]} 55. Bf6+ {[%emt 0:00:54]} Kg6 {[%emt 0:00:20]} 56. Be5+ {[%emt 0:00:27]} Kh5 {[%emt 0:00:58]} 57. Qf7+ {[%emt 0:00:14] Weighted Error Value: White=0.15 (very precise) /Black=0.30} 1-0